[Event "Late-Titled-Tuesday-Blitz-April-02-2024"]
[Site "Chess.com"]
[Date "2024.04.02"]
[Round "1"]
[White "temus_galaktionov"]
[Black "cthulhuuu"]
[Result "1-0"]
[WhiteElo "2845"]
[BlackElo "2460"]
[TimeControl "180+1"]
[EndTime "14:06:34 PDT"]
[Termination "temus_galaktionov won on time"]

1. d4 {[%clk 0:03:00.9]} 1... Nf6 {[%clk 0:02:58.3]} 2. Nf3 {[%clk 0:03:00.7]}
2... g6 {[%clk 0:02:55.4]} 3. c4 {[%clk 0:02:58.4]} 3... Bg7 {[%clk 0:02:55.6]}
4. Nc3 {[%clk 0:02:59.3]} 4... O-O {[%clk 0:02:55.1]} 5. e4 {[%clk 0:02:59.4]}
5... d6 {[%clk 0:02:55.5]} 6. Be2 {[%clk 0:02:55.3]} 6... e5 {[%clk 0:02:53.4]}
7. O-O {[%clk 0:02:55.8]} 7... exd4 {[%clk 0:02:52.7]} 8. Nxd4 {[%clk
0:02:56.7]} 8... Re8 {[%clk 0:02:52.4]} 9. f3 {[%clk 0:02:57]} 9... Nc6 {[%clk
0:02:52.7]} 10. Be3 {[%clk 0:02:51.1]} 10... Bd7 {[%clk 0:02:29.3]} 11. Qd2
{[%clk 0:02:40.3]} 11... Nxd4 {[%clk 0:02:27.5]} 12. Bxd4 {[%clk 0:02:40.2]}
12... Bc6 {[%clk 0:02:27.9]} 13. Rae1 {[%clk 0:02:38.9]} 13... Nd7 {[%clk
0:02:19]} 14. Bxg7 {[%clk 0:02:32.2]} 14... Kxg7 {[%clk 0:02:19.9]} 15. Bd1
{[%clk 0:02:32.2]} 15... a5 {[%clk 0:02:15.8]} 16. Ba4 {[%clk 0:02:25.3]} 16...
Nc5 {[%clk 0:02:14.3]} 17. Bxc6 {[%clk 0:02:24.9]} 17... bxc6 {[%clk 0:02:15.2]}
18. f4 {[%clk 0:02:18.8]} 18... f6 {[%clk 0:02:10.9]} 19. b3 {[%clk 0:02:02.8]}
19... Qe7 {[%clk 0:02:09.9]} 20. Re2 {[%clk 0:02:00.3]} 20... Rab8 {[%clk
0:01:31.1]} 21. Rfe1 {[%clk 0:01:53.3]} 21... a4 {[%clk 0:01:30.3]} 22. Nxa4
{[%clk 0:01:50.2]} 22... Nxa4 {[%clk 0:01:29.3]} 23. bxa4 {[%clk 0:01:51.1]}
23... Qe6 {[%clk 0:00:32.4]} 24. Qc3 {[%clk 0:01:49]} 24... Qg4 {[%clk
0:00:31.7]} 25. e5 {[%clk 0:01:44.9]} 25... dxe5 {[%clk 0:00:13.8]} 26. fxe5
{[%clk 0:01:45.8]} 26... f5 {[%clk 0:00:14.1]} 27. e6+ {[%clk 0:01:43.5]} 27...
Kg8 {[%clk 0:00:14.5]} 28. h3 {[%clk 0:01:34.6]} 28... Qf4 {[%clk 0:00:11.5]}
29. e7 {[%clk 0:01:25]} 29... c5 {[%clk 0:00:10.2]} 30. Rd2 {[%clk 0:01:13.4]}
30... Qg5 {[%clk 0:00:10.4]} 31. Rd7 {[%clk 0:01:10.5]} 31... c6 {[%clk
0:00:03.4]} 32. Qe5 {[%clk 0:01:04.7]} 32... Kf7 {[%clk 0:00:01.2]} 33. a5
{[%clk 0:00:55.8]} 1-0

[Event "Late-Titled-Tuesday-Blitz-April-02-2024"]
[Site "Chess.com"]
[Date "2024.04.02"]
[Round "1"]
[White "Janh4"]
[Black "Juicy_Fork"]
[Result "1-0"]
[WhiteElo "2180"]
[BlackElo "2553"]
[TimeControl "180+1"]
[EndTime "14:06:37 PDT"]
[Termination "Janh4 won on time"]

1. d4 {[%clk 0:03:00.3]} 1... Nf6 {[%clk 0:02:54]} 2. Nc3 {[%clk 0:03:00.5]}
2... d5 {[%clk 0:02:53.4]} 3. Bf4 {[%clk 0:03:01.1]} 3... g6 {[%clk 0:02:50.3]}
4. e3 {[%clk 0:03:00.7]} 4... Bg7 {[%clk 0:02:50.1]} 5. h4 {[%clk 0:03:01.3]}
5... h5 {[%clk 0:02:49.6]} 6. Nf3 {[%clk 0:03:01.1]} 6... O-O {[%clk 0:02:50.2]}
7. Ne5 {[%clk 0:02:59.8]} 7... c5 {[%clk 0:02:50.2]} 8. Qd2 {[%clk 0:02:57.9]}
8... Nc6 {[%clk 0:02:47.3]} 9. f3 {[%clk 0:02:57.7]} 9... cxd4 {[%clk
0:02:42.5]} 10. exd4 {[%clk 0:02:57.6]} 10... Qb6 {[%clk 0:02:43.1]} 11. O-O-O
{[%clk 0:02:57.1]} 11... Bf5 {[%clk 0:02:40.9]} 12. Bd3 {[%clk 0:02:32.9]} 12...
Bxd3 {[%clk 0:02:30.1]} 13. Qxd3 {[%clk 0:02:30.1]} 13... Rac8 {[%clk
0:02:28.1]} 14. Kb1 {[%clk 0:02:25]} 14... Na5 {[%clk 0:02:17.8]} 15. Ka1 {[%clk
0:02:02.3]} 15... Nc4 {[%clk 0:02:15.1]} 16. Bc1 {[%clk 0:01:59.7]} 16... e6
{[%clk 0:01:48.3]} 17. g4 {[%clk 0:01:34.3]} 17... Nxe5 {[%clk 0:01:23.1]} 18.
dxe5 {[%clk 0:01:31.8]} 18... Nd7 {[%clk 0:01:23.4]} 19. f4 {[%clk 0:01:23.4]}
19... Nc5 {[%clk 0:01:18.5]} 20. Qe2 {[%clk 0:01:08.9]} 20... d4 {[%clk
0:00:53.1]} 21. Ne4 {[%clk 0:01:00.8]} 21... Nxe4 {[%clk 0:00:19.1]} 22. Qxe4
{[%clk 0:01:00.9]} 22... hxg4 {[%clk 0:00:13.1]} 23. h5 {[%clk 0:00:58.1]} 23...
Qc6 {[%clk 0:00:12.4]} 24. Qxc6 {[%clk 0:00:34]} 24... Rxc6 {[%clk 0:00:10.4]}
25. hxg6 {[%clk 0:00:34.6]} 1-0

[Event "Late-Titled-Tuesday-Blitz-April-02-2024"]
[Site "Chess.com"]
[Date "2024.04.02"]
[Round "1"]
[White "ChessAdvanceUSA"]
[Black "DreamsAreFake"]
[Result "0-1"]
[WhiteElo "2414"]
[BlackElo "2743"]
[TimeControl "180+1"]
[EndTime "14:06:40 PDT"]
[Termination "DreamsAreFake won by resignation"]

1. Nf3 {[%clk 0:03:00.9]} 1... Nf6 {[%clk 0:02:55.3]} 2. d4 {[%clk 0:03:00.7]}
2... b6 {[%clk 0:02:55.3]} 3. g3 {[%clk 0:02:45.1]} 3... Bb7 {[%clk 0:02:54.1]}
4. Bg2 {[%clk 0:02:45.3]} 4... g6 {[%clk 0:02:54.8]} 5. O-O {[%clk 0:02:43.8]}
5... Bg7 {[%clk 0:02:55.5]} 6. c3 {[%clk 0:02:39.2]} 6... O-O {[%clk 0:02:56]}
7. a4 {[%clk 0:02:35.9]} 7... a6 {[%clk 0:02:47.4]} 8. Bf4 {[%clk 0:02:31.9]}
8... d6 {[%clk 0:02:47.4]} 9. Na3 {[%clk 0:02:20.9]} 9... Nbd7 {[%clk
0:02:46.7]} 10. Nc4 {[%clk 0:02:14.9]} 10... c5 {[%clk 0:02:45.7]} 11. b4 {[%clk
0:01:58.7]} 11... cxb4 {[%clk 0:02:27.3]} 12. cxb4 {[%clk 0:01:58.3]} 12... Nd5
{[%clk 0:02:28]} 13. Bd2 {[%clk 0:01:54.6]} 13... N7f6 {[%clk 0:02:28.7]} 14.
Ne3 {[%clk 0:01:44.2]} 14... Qd7 {[%clk 0:02:24.2]} 15. Nxd5 {[%clk 0:01:43.7]}
15... Bxd5 {[%clk 0:02:25.1]} 16. Ne1 {[%clk 0:01:26.2]} 16... Rfc8 {[%clk
0:02:21.5]} 17. Nd3 {[%clk 0:01:19.2]} 17... Bxg2 {[%clk 0:02:12.6]} 18. Kxg2
{[%clk 0:01:18]} 18... Qc6+ {[%clk 0:02:05.7]} 19. f3 {[%clk 0:01:13.9]} 19...
Qc4 {[%clk 0:02:06.4]} 20. Rc1 {[%clk 0:00:53.8]} 20... Qxd4 {[%clk 0:02:05.3]}
21. Qb3 {[%clk 0:00:53.7]} 21... Nd5 {[%clk 0:02:02.1]} 22. e4 {[%clk
0:00:47.3]} 22... Ne3+ {[%clk 0:02:01.1]} 23. Bxe3 {[%clk 0:00:47.2]} 23... Qxe3
{[%clk 0:02:02]} 24. Rxc8+ {[%clk 0:00:44.9]} 24... Rxc8 {[%clk 0:02:02.9]} 25.
Qd5 {[%clk 0:00:37.2]} 25... Rc2+ {[%clk 0:01:54.6]} 26. Rf2 {[%clk 0:00:36.2]}
26... Rxf2+ {[%clk 0:01:52.7]} 27. Nxf2 {[%clk 0:00:37.1]} 27... Bd4 {[%clk
0:01:40.6]} 28. Ng4 {[%clk 0:00:33.2]} 28... Qg1+ {[%clk 0:01:39.2]} 29. Kh3
{[%clk 0:00:30.3]} 29... Kg7 {[%clk 0:01:32.1]} 30. e5 {[%clk 0:00:19.7]} 30...
h6 {[%clk 0:01:15.1]} 31. f4 {[%clk 0:00:11]} 31... dxe5 {[%clk 0:01:04.4]} 32.
Nxe5 {[%clk 0:00:10.5]} 32... e6 {[%clk 0:01:01.7]} 33. Qe4 {[%clk 0:00:09.3]}
33... Qf1+ {[%clk 0:00:57.7]} 34. Kh4 {[%clk 0:00:07.8]} 34... g5+ {[%clk
0:00:54.5]} 35. fxg5 {[%clk 0:00:07.3]} 35... hxg5+ {[%clk 0:00:54.6]} 36. Kxg5
{[%clk 0:00:07.4]} 36... Bxe5 {[%clk 0:00:50]} 37. Qxe5+ {[%clk 0:00:05.7]}
37... f6+ {[%clk 0:00:50.4]} 38. Kg4 {[%clk 0:00:06.1]} 38... fxe5 {[%clk
0:00:50.5]} 0-1

[Event "Late-Titled-Tuesday-Blitz-April-02-2024"]
[Site "Chess.com"]
[Date "2024.04.02"]
[Round "1"]
[White "Sanyura"]
[Black "Mariia89"]
[Result "1-0"]
[WhiteElo "2612"]
[BlackElo "2283"]
[TimeControl "180+1"]
[EndTime "14:06:43 PDT"]
[Termination "Sanyura won by resignation"]

1. e4 {[%clk 0:02:34.1]} 1... c6 {[%clk 0:02:59.8]} 2. d4 {[%clk 0:02:30.3]}
2... d5 {[%clk 0:03:00.6]} 3. e5 {[%clk 0:02:29.4]} 3... Bf5 {[%clk 0:03:00.4]}
4. c4 {[%clk 0:02:29.8]} 4... e6 {[%clk 0:02:59.9]} 5. Nc3 {[%clk 0:02:28.2]}
5... Nd7 {[%clk 0:02:49.5]} 6. h4 {[%clk 0:02:28.1]} 6... h5 {[%clk 0:02:48.9]}
7. Nge2 {[%clk 0:02:27]} 7... Ne7 {[%clk 0:02:43.5]} 8. Ng3 {[%clk 0:02:26.6]}
8... Bg6 {[%clk 0:02:43]} 9. Bg5 {[%clk 0:02:25.7]} 9... Qb6 {[%clk 0:02:42.2]}
10. Rc1 {[%clk 0:02:18.7]} 10... Qxb2 {[%clk 0:02:33]} 11. Be2 {[%clk
0:02:18.2]} 11... Nf5 {[%clk 0:02:25.1]} 12. Nxf5 {[%clk 0:02:16.1]} 12... Bxf5
{[%clk 0:02:24.3]} 13. cxd5 {[%clk 0:02:12.3]} 13... exd5 {[%clk 0:02:23.1]} 14.
Bxh5 {[%clk 0:02:09.2]} 14... Bb4 {[%clk 0:02:19.1]} 15. Bd2 {[%clk 0:02:08.7]}
15... Bxc3 {[%clk 0:02:10.5]} 16. Bxc3 {[%clk 0:02:04.8]} 16... Qxa2 {[%clk
0:02:07.9]} 17. O-O {[%clk 0:02:01.9]} 17... g6 {[%clk 0:02:06.2]} 18. Be2
{[%clk 0:02:01.2]} 18... Rxh4 {[%clk 0:01:59.1]} 19. g4 {[%clk 0:01:56.2]} 19...
Be6 {[%clk 0:01:37.4]} 20. Ra1 {[%clk 0:01:55.2]} 20... Qxe2 {[%clk 0:01:15.9]}
21. Qxe2 {[%clk 0:01:54.7]} 21... Rxg4+ {[%clk 0:01:16.2]} 22. Kh2 {[%clk
0:01:41.6]} 22... O-O-O {[%clk 0:01:15.5]} 23. Qxg4 {[%clk 0:01:39.9]} 23...
Bxg4 {[%clk 0:01:15.2]} 24. Rxa7 {[%clk 0:01:40.4]} 24... Be2 {[%clk 0:01:01]}
25. Re1 {[%clk 0:01:30]} 25... Rh8+ {[%clk 0:00:58.5]} 26. Kg3 {[%clk
0:01:29.6]} 26... Ba6 {[%clk 0:00:55.3]} 27. Ra8+ {[%clk 0:01:29.1]} 27... Nb8
{[%clk 0:00:55.4]} 28. Bb4 {[%clk 0:01:26.9]} 28... b6 {[%clk 0:00:43.9]} 29.
Ra1 {[%clk 0:01:18.9]} 29... Kb7 {[%clk 0:00:44.2]} 30. R1xa6 {[%clk 0:01:18.2]}
30... Nxa6 {[%clk 0:00:41.4]} 31. Rxh8 {[%clk 0:01:17.1]} 31... Nxb4 {[%clk
0:00:42]} 32. Rf8 {[%clk 0:01:17.1]} 32... c5 {[%clk 0:00:34.1]} 33. Rxf7+
{[%clk 0:01:17]} 33... Ka6 {[%clk 0:00:34.4]} 34. dxc5 {[%clk 0:01:11.9]} 34...
bxc5 {[%clk 0:00:34.4]} 35. e6 {[%clk 0:01:12.3]} 35... Nc6 {[%clk 0:00:26.2]}
36. Rd7 {[%clk 0:01:09.9]} 36... Kb5 {[%clk 0:00:24]} 37. Rxd5 {[%clk
0:01:09.3]} 37... Kc4 {[%clk 0:00:21.8]} 38. Rd7 {[%clk 0:01:09.3]} 38... Nd4
{[%clk 0:00:15.4]} 39. e7 {[%clk 0:01:09.4]} 39... Nf5+ {[%clk 0:00:15.6]} 40.
Kf4 {[%clk 0:01:09.9]} 40... Nxe7 {[%clk 0:00:14.9]} 41. Rxe7 {[%clk 0:01:10.2]}
41... Kd3 {[%clk 0:00:15.8]} 42. Kg5 {[%clk 0:01:07.3]} 42... c4 {[%clk
0:00:16]} 43. Kxg6 {[%clk 0:01:07.6]} 43... c3 {[%clk 0:00:16.4]} 44. f4 {[%clk
0:01:08.1]} 44... c2 {[%clk 0:00:17.3]} 45. Rc7 {[%clk 0:01:08]} 1-0

[Event "Late-Titled-Tuesday-Blitz-April-02-2024"]
[Site "Chess.com"]
[Date "2024.04.02"]
[Round "1"]
[White "ansko1999"]
[Black "Kostukov_Alex"]
[Result "1-0"]
[WhiteElo "2621"]
[BlackElo "2293"]
[TimeControl "180+1"]
[EndTime "14:06:46 PDT"]
[Termination "ansko1999 won on time"]

1. c4 {[%clk 0:03:00.3]} 1... g6 {[%clk 0:02:52.1]} 2. d4 {[%clk 0:02:56.4]}
2... Bg7 {[%clk 0:02:52.1]} 3. Nc3 {[%clk 0:02:55.6]} 3... d6 {[%clk 0:02:52.5]}
4. Nf3 {[%clk 0:02:54.6]} 4... e5 {[%clk 0:02:52.7]} 5. dxe5 {[%clk 0:02:51.3]}
5... dxe5 {[%clk 0:02:53.6]} 6. Qxd8+ {[%clk 0:02:51.3]} 6... Kxd8 {[%clk
0:02:54.5]} 7. Bg5+ {[%clk 0:02:49.8]} 7... f6 {[%clk 0:02:54.3]} 8. O-O-O+
{[%clk 0:02:48.9]} 8... Nd7 {[%clk 0:02:54]} 9. Be3 {[%clk 0:02:47.5]} 9... Bh6
{[%clk 0:02:54.4]} 10. Nd5 {[%clk 0:02:43.9]} 10... Bxe3+ {[%clk 0:02:50.6]} 11.
Nxe3 {[%clk 0:02:42.1]} 11... c6 {[%clk 0:02:49.5]} 12. g4 {[%clk 0:02:39.1]}
12... Ke7 {[%clk 0:02:31.7]} 13. h4 {[%clk 0:02:38.5]} 13... Nc5 {[%clk
0:02:27.8]} 14. h5 {[%clk 0:02:33.4]} 14... gxh5 {[%clk 0:02:10.9]} 15. Rxh5
{[%clk 0:02:30.7]} 15... Ne4 {[%clk 0:02:08.1]} 16. Rh2 {[%clk 0:02:21]} 16...
Be6 {[%clk 0:01:50.7]} 17. Nh4 {[%clk 0:02:20.1]} 17... Nh6 {[%clk 0:01:40.9]}
18. f3 {[%clk 0:02:07]} 18... Ng5 {[%clk 0:01:08.7]} 19. b3 {[%clk 0:01:57.5]}
19... a5 {[%clk 0:01:07.6]} 20. c5 {[%clk 0:01:22.2]} 20... a4 {[%clk
0:01:04.4]} 21. Kb2 {[%clk 0:01:22.9]} 21... axb3 {[%clk 0:00:58.5]} 22. axb3
{[%clk 0:01:23.8]} 22... Ra5 {[%clk 0:00:58]} 23. b4 {[%clk 0:01:22.9]} 23...
Ra2+ {[%clk 0:00:56.7]} 24. Kc3 {[%clk 0:01:17.6]} 24... Rha8 {[%clk 0:00:52]}
25. Nc2 {[%clk 0:01:17.7]} 25... Nhf7 {[%clk 0:00:24.4]} 26. e3 {[%clk
0:01:09.6]} 26... b6 {[%clk 0:00:19.8]} 27. cxb6 {[%clk 0:01:07.9]} 27... Rb8
{[%clk 0:00:20.2]} 28. Bc4 {[%clk 0:00:54.5]} 28... Bxc4 {[%clk 0:00:15.5]} 29.
Kxc4 {[%clk 0:00:55.4]} 29... Rxb6 {[%clk 0:00:16]} 30. Kb3 {[%clk 0:00:55.1]}
30... Ra8 {[%clk 0:00:14]} 31. Nf5+ {[%clk 0:00:49.2]} 31... Kf8 {[%clk
0:00:12.7]} 32. f4 {[%clk 0:00:47.3]} 32... exf4 {[%clk 0:00:10.8]} 33. exf4
{[%clk 0:00:48.2]} 33... Ne6 {[%clk 0:00:07]} 34. Rxh7 {[%clk 0:00:42.6]} 34...
Nxf4 {[%clk 0:00:07]} 35. Rd7 {[%clk 0:00:41]} 1-0

[Event "Late-Titled-Tuesday-Blitz-April-02-2024"]
[Site "Chess.com"]
[Date "2024.04.02"]
[Round "1"]
[White "EgorYakovlev"]
[Black "norwaytoadog"]
[Result "1-0"]
[WhiteElo "2659"]
[BlackElo "2365"]
[TimeControl "180+1"]
[EndTime "14:06:49 PDT"]
[Termination "EgorYakovlev won on time"]

1. e4 {[%clk 0:03:00]} 1... e5 {[%clk 0:02:59.1]} 2. Nf3 {[%clk 0:03:00.1]} 2...
Nc6 {[%clk 0:02:59.5]} 3. c3 {[%clk 0:03:00.5]} 3... Nf6 {[%clk 0:02:56.5]} 4.
d4 {[%clk 0:03:00.5]} 4... Nxe4 {[%clk 0:02:56.4]} 5. d5 {[%clk 0:03:00.7]} 5...
Bc5 {[%clk 0:02:56.3]} 6. dxc6 {[%clk 0:02:58]} 6... Bxf2+ {[%clk 0:02:54.2]} 7.
Ke2 {[%clk 0:02:57.8]} 7... Bb6 {[%clk 0:02:43.4]} 8. Qd5 {[%clk 0:02:55.2]}
8... Nf2 {[%clk 0:02:40.7]} 9. cxb7 {[%clk 0:02:46]} 9... Bxb7 {[%clk
0:02:37.9]} 10. Qxb7 {[%clk 0:02:46.9]} 10... O-O {[%clk 0:02:27.4]} 11. Rg1
{[%clk 0:02:38.6]} 11... c6 {[%clk 0:02:09]} 12. Qa6 {[%clk 0:02:34.6]} 12... e4
{[%clk 0:02:06.4]} 13. Nd4 {[%clk 0:02:32.9]} 13... Qf6 {[%clk 0:01:49.1]} 14.
Be3 {[%clk 0:02:27.5]} 14... Ng4 {[%clk 0:01:41.8]} 15. Nd2 {[%clk 0:02:15.5]}
15... d5 {[%clk 0:01:39.8]} 16. b4 {[%clk 0:02:05.6]} 16... Qh4 {[%clk
0:01:22.2]} 17. g3 {[%clk 0:01:48]} 17... Qxh2+ {[%clk 0:01:16.8]} 18. Rg2
{[%clk 0:01:48]} 18... Qh5 {[%clk 0:01:16.4]} 19. N2b3 {[%clk 0:01:16.2]} 19...
f5 {[%clk 0:01:03.1]} 20. Kd2 {[%clk 0:01:14.6]} 20... Nxe3 {[%clk 0:01:01.1]}
21. Kxe3 {[%clk 0:01:15.5]} 21... f4+ {[%clk 0:00:52.1]} 22. gxf4 {[%clk
0:01:10.5]} 22... Qf3+ {[%clk 0:00:42.5]} 23. Kd2 {[%clk 0:01:10.3]} 23... Qxf4+
{[%clk 0:00:42]} 24. Kc2 {[%clk 0:01:10.1]} 24... e3 {[%clk 0:00:37]} 25. Qb7
{[%clk 0:01:07]} 25... Qe4+ {[%clk 0:00:31.4]} 26. Kb2 {[%clk 0:01:06.1]} 26...
g6 {[%clk 0:00:26.9]} 27. Rh2 {[%clk 0:01:00.8]} 27... h5 {[%clk 0:00:24.5]} 28.
Rd1 {[%clk 0:00:57]} 28... Rae8 {[%clk 0:00:19.3]} 29. Bd3 {[%clk 0:00:56.4]}
29... Qg4 {[%clk 0:00:16.4]} 30. Re1 {[%clk 0:00:51.3]} 30... Rf2+ {[%clk
0:00:15.9]} 31. Rxf2 {[%clk 0:00:51]} 31... Qg3 {[%clk 0:00:06.7]} 32. Rfe2
{[%clk 0:00:48.8]} 32... Rf8 {[%clk 0:00:03.8]} 33. Qxc6 {[%clk 0:00:47.9]}
33... Rf2 {[%clk 0:00:02.3]} 34. Qxg6+ {[%clk 0:00:46.5]} 34... Qxg6 {[%clk
0:00:02.5]} 35. Bxg6 {[%clk 0:00:47.4]} 1-0

[Event "Late-Titled-Tuesday-Blitz-April-02-2024"]
[Site "Chess.com"]
[Date "2024.04.02"]
[Round "1"]
[White "Evgeny81"]
[Black "czasnaszachy"]
[Result "1-0"]
[WhiteElo "2757"]
[BlackElo "2422"]
[TimeControl "180+1"]
[EndTime "14:06:52 PDT"]
[Termination "Evgeny81 won by checkmate"]

1. e4 {[%clk 0:02:59.4]} 1... c5 {[%clk 0:02:57.4]} 2. Nf3 {[%clk 0:02:59.2]}
2... a6 {[%clk 0:02:57]} 3. c3 {[%clk 0:02:58.5]} 3... d5 {[%clk 0:02:52.8]} 4.
exd5 {[%clk 0:02:59.4]} 4... Qxd5 {[%clk 0:02:52.9]} 5. d4 {[%clk 0:03:00.1]}
5... Nf6 {[%clk 0:02:50.2]} 6. Be2 {[%clk 0:03:00]} 6... e6 {[%clk 0:02:45.8]}
7. O-O {[%clk 0:02:59.7]} 7... Nc6 {[%clk 0:02:45.7]} 8. c4 {[%clk 0:02:57.1]}
8... Qd8 {[%clk 0:02:44.2]} 9. Be3 {[%clk 0:02:55]} 9... cxd4 {[%clk 0:02:40.2]}
10. Nxd4 {[%clk 0:02:55.9]} 10... Bd7 {[%clk 0:02:40]} 11. Nc3 {[%clk
0:02:55.2]} 11... Be7 {[%clk 0:02:35.1]} 12. Bf3 {[%clk 0:02:54.5]} 12... Qc7
{[%clk 0:02:28.5]} 13. Rc1 {[%clk 0:02:52]} 13... O-O {[%clk 0:02:24.5]} 14. Nd5
{[%clk 0:02:49.5]} 14... exd5 {[%clk 0:01:49.8]} 15. cxd5 {[%clk 0:02:50.4]}
15... Rfd8 {[%clk 0:01:36.8]} 16. dxc6 {[%clk 0:02:46.4]} 16... Bxc6 {[%clk
0:01:34.3]} 17. Bxc6 {[%clk 0:02:43.7]} 17... bxc6 {[%clk 0:01:34.8]} 18. Qf3
{[%clk 0:02:44.3]} 18... c5 {[%clk 0:00:58.9]} 19. Nc6 {[%clk 0:02:42.4]} 19...
Rdc8 {[%clk 0:00:59.1]} 20. Bxc5 {[%clk 0:02:35]} 20... Qxc6 {[%clk 0:00:20]}
21. Qxc6 {[%clk 0:02:31.1]} 21... Rxc6 {[%clk 0:00:20.9]} 22. Bxe7 {[%clk
0:02:31.8]} 22... Rac8 {[%clk 0:00:20]} 23. Rxc6 {[%clk 0:02:19]} 23... Rxc6
{[%clk 0:00:20.9]} 24. Rd1 {[%clk 0:02:11.6]} 24... h6 {[%clk 0:00:16.7]} 25.
Bxf6 {[%clk 0:02:03.4]} 25... Rxf6 {[%clk 0:00:16.2]} 26. g3 {[%clk 0:01:52.4]}
26... Rb6 {[%clk 0:00:11.6]} 27. b3 {[%clk 0:01:50.7]} 27... Rc6 {[%clk
0:00:11.4]} 28. Rd5 {[%clk 0:01:49.6]} 28... g6 {[%clk 0:00:08.2]} 29. g4 {[%clk
0:01:49.2]} 29... Kf8 {[%clk 0:00:06.7]} 30. Kg2 {[%clk 0:01:47.7]} 30... Ke7
{[%clk 0:00:06.5]} 31. h4 {[%clk 0:01:47.7]} 31... Ke6 {[%clk 0:00:07.2]} 32.
Ra5 {[%clk 0:01:47.7]} 32... Kd7 {[%clk 0:00:06.9]} 33. Kg3 {[%clk 0:01:45.1]}
33... Kc7 {[%clk 0:00:06.9]} 34. h5 {[%clk 0:01:45.4]} 34... Kb6 {[%clk
0:00:05.9]} 35. Re5 {[%clk 0:01:43]} 35... Rc2 {[%clk 0:00:03.5]} 36. hxg6
{[%clk 0:01:41.7]} 36... fxg6 {[%clk 0:00:04.4]} 37. Re6+ {[%clk 0:01:41.8]}
37... Kb5 {[%clk 0:00:02.9]} 38. a4+ {[%clk 0:01:37.2]} 38... Ka5 {[%clk
0:00:03.4]} 39. Rxg6 {[%clk 0:01:36.4]} 39... Rc3+ {[%clk 0:00:03.9]} 40. f3
{[%clk 0:01:36.5]} 40... Rxb3 {[%clk 0:00:04.8]} 41. Rxh6 {[%clk 0:01:36.8]}
41... Rb4 {[%clk 0:00:04.7]} 42. g5 {[%clk 0:01:35.5]} 42... Rxa4 {[%clk
0:00:05]} 43. g6 {[%clk 0:01:32.9]} 43... Ra1 {[%clk 0:00:04.9]} 44. Rh5+ {[%clk
0:01:32.8]} 44... Kb4 {[%clk 0:00:03.3]} 45. Rg5 {[%clk 0:01:32.6]} 45... Rg1+
{[%clk 0:00:02.4]} 46. Kf4 {[%clk 0:01:32.6]} 46... Rxg5 {[%clk 0:00:02.2]} 47.
Kxg5 {[%clk 0:01:32.8]} 47... a5 {[%clk 0:00:03.1]} 48. g7 {[%clk 0:01:33.7]}
48... a4 {[%clk 0:00:04]} 49. g8=Q {[%clk 0:01:34.5]} 49... a3 {[%clk
0:00:04.9]} 50. Qa2 {[%clk 0:01:34.6]} 50... Ka4 {[%clk 0:00:04.9]} 51. Kf4
{[%clk 0:01:34.4]} 51... Kb4 {[%clk 0:00:05.8]} 52. Ke4 {[%clk 0:01:35]} 52...
Ka4 {[%clk 0:00:06.7]} 53. Kd4 {[%clk 0:01:35.2]} 53... Kb4 {[%clk 0:00:07.6]}
54. f4 {[%clk 0:01:35.7]} 54... Ka4 {[%clk 0:00:08.5]} 55. f5 {[%clk 0:01:36.6]}
55... Kb4 {[%clk 0:00:09.4]} 56. f6 {[%clk 0:01:37.5]} 56... Ka4 {[%clk
0:00:10.3]} 57. Kc4 {[%clk 0:01:37.7]} 57... Ka5 {[%clk 0:00:10.7]} 58. Kc5
{[%clk 0:01:37.1]} 58... Ka4 {[%clk 0:00:11.6]} 59. f7 {[%clk 0:01:37.5]} 59...
Ka5 {[%clk 0:00:12.5]} 60. f8=Q {[%clk 0:01:36.3]} 60... Ka4 {[%clk 0:00:13.3]}
61. Qff2 {[%clk 0:01:34.6]} 61... Ka5 {[%clk 0:00:13.1]} 62. Qfb2 {[%clk
0:01:27.2]} 62... Ka4 {[%clk 0:00:14]} 63. Qaxa3# {[%clk 0:01:26.7]} 1-0